{"text_format":"3","workbook":"xlsx","n_sheets":1,"sheets":["Sheet1"],"read":"whole","date_system":"1900"}

{"sheet":"Sheet1","index":0,"n_rows":33,"n_cols":5,"rows_kept":33}
["Alle ansatte har rett til å ta ut 25 (30) dager ferie"]
["De som er i tvil om hvor mange dager de vil få lønn for kan regne det ut med denne beregningen."]
[]
[]
[null,"Ansatte under 60 år","Ansatte over 60 år"]
[null," (maks 25 dager)","(maks 30 dager ferie)"]
[]
["Brutto månedslønn per juni (fra lønnslipp)","sett inn beløpet her","sett inn beløpet her","kroner"]
["Gir en daglønn på:",{"$f":"(B8*12)/260","v":{"$error":"#VALUE!"}},{"$f":"(C8*12)/260","v":{"$error":"#VALUE!"}},"kroner"]
[]
["Opparbeidet feriepenger","sett inn beløpet her","sett inn beløpet her","kroner","se desemberlønnslipp nederst i høyre hjørne"]
["Gir lønn for ",{"$f":"B11/B9","v":{"$error":"#VALUE!"}},{"$f":"C11/C9","v":{"$error":"#VALUE!"}},"dager"]
[]
[]
["Dersom du tar ut full ferie uten å ha opparbeidet full ferie vil du bli trukket i lønn tilsvarende daglønn x antall dager:"]
["Daglønn",{"$f":"B9","v":{"$error":"#VALUE!"}},{"$f":"C9","v":{"$error":"#VALUE!"}},"kroner"]
["Antall dager",{"$f":"25-B12","v":{"$error":"#VALUE!"}},{"$f":"30-C12","v":{"$error":"#VALUE!"}},"dager"]
["Trekk i lønn",{"$f":"B16*B17","v":{"$error":"#VALUE!"}},{"$f":"C16*C17","v":{"$error":"#VALUE!"}},"kroner","minusbeløp = beløp utbetalt utover tilsv. vanlig månedslønn i juni"]
[]
[]
["Utbetalingen av feriepengene vil bli regnet ut slik:"]
["Månedslønn juni",{"$f":"B8","v":"sett inn beløpet her"},{"$f":"C8","v":"sett inn beløpet her"},"kroner"]
[" + Opparbeidet feriepenger",{"$f":"B11","v":"sett inn beløpet her"},{"$f":"C11","v":"sett inn beløpet her"},"kroner"]
["Sum ",{"$f":"SUM(B22:B23)","v":0},{"$f":"SUM(C22:C23)","v":0}]
[" - fradrag for feriedager",{"$f":"B9*25","v":{"$error":"#VALUE!"}},{"$f":"C9*30","v":{"$error":"#VALUE!"}},"kroner "]
["Sum til utbetaling i juni",{"$f":"B24-B25","v":{"$error":"#VALUE!"}},{"$f":"C24-C25","v":{"$error":"#VALUE!"}},"kroner"]
[]
[]
["Ved innføring av 5. (6.) ferieuke ble antall feriedager mer enn 1 måneds arbeidsdager. Dette kompliserte regnestykket."]
["UiO har lagt seg på en måte å beregne utbetaling av feriepenger på som gjør at alle ansatte får \"normal\" lønn i juli."]
[]
["Det er anledning til å ikke avvikle feriedager som ikke dekkes av feriepenger, i så fall må skjema fylles ut"]
["Skjemaoversikt"]